fUSD/lending_fUSD_20250629
["ID","MTS","AMOUNT","RATE_DAILY","PERIOD"]
[368486922,1751190697921,-1033.94,0.00028767,3]
[368486923,1751190697930,-334.7,0.00028767,3]
[368486924,1751190697941,-18048.03,0.00028767,3]
[368486925,1751190697950,-841.15,0.00028767,3]
[368486926,1751190697960,-814.68,0.00028767,3]
[368486927,1751190697970,-994.63,0.00028767,3]
[368486928,1751190697979,-817.07,0.00028767,3]
[368486929,1751190697989,-490.0,0.00028767,3]
[368486930,1751190697999,-490.0,0.00028767,3]
[368486931,1751190698008,-490.0,0.00028767,3]
[368486932,1751190698018,-860.32,0.00028767,3]
[368486933,1751190698027,-1083.78,0.00028767,3]
[368486934,1751190698037,-490.0,0.00028767,3]
[368486935,1751190698046,-895.73,0.00028767,3]
[368486936,1751190698056,-490.0,0.00028767,3]
[368486937,1751190698065,-1619.71,0.00028767,3]
[368486938,1751190698075,-2039.79,0.00028767,3]
[368486939,1751190698085,-490.0,0.00028767,3]
[368486940,1751190698094,-522.56,0.00028767,3]
[368486941,1751190698104,-490.0,0.00028767,3]
[368486942,1751190698113,-1338.17,0.00028767,3]
[368486943,1751190698123,-2735.95,0.00028767,3]
[368486944,1751190698133,-490.0,0.00028767,3]
[368486945,1751190698143,-490.0,0.00028767,3]
[368486946,1751190698153,-5045.19,0.00028767,3]
[368486947,1751190698162,-732.19,0.00028767,3]
[368486948,1751190698172,-490.0,0.00028767,3]
[368486949,1751190698181,-490.0,0.00028767,3]
[368486950,1751190698191,-490.0,0.00028767,3]
[368486951,1751190698200,-2798.62,0.00028767,3]
[368486952,1751190698209,-1159.62,0.00028767,3]
[368486953,1751190698218,-557.27,0.00028767,3]
[368486954,1751190698227,-1735.18,0.00028767,3]
[368486955,1751190698236,-490.0,0.00028767,3]
[368486956,1751190698246,-490.0,0.00028767,3]
[368486957,1751190698255,-490.0,0.00028767,3]
[368486958,1751190698264,-795.99,0.00028767,3]
[368486959,1751190698273,-490.0,0.00028767,3]
[368486960,1751190698282,-490.0,0.00028767,3]
[368486961,1751190698291,-2632.4,0.00028767,3]
[368486962,1751190698300,-490.0,0.00028767,3]
[368486963,1751190698310,-2676.96,0.00028767,3]
[368486964,1751190698319,-890.5,0.00028767,3]
[368486965,1751190698329,-815.43,0.00028767,3]
[368486966,1751190698338,-490.0,0.00028767,3]
[368486967,1751190698353,-490.0,0.00028767,3]
[368486968,1751190698362,-2287.33,0.00028767,3]
[368486969,1751190698372,-490.0,0.00028767,3]
[368486970,1751190698381,-7199.68,0.00028767,3]
[368486971,1751190698391,-1083.86,0.00028767,3]
[368486972,1751190698399,-1198.65,0.00028767,3]
[368486973,1751190698409,-564.45,0.00028767,3]
[368486974,1751190698418,-4926.93,0.00028767,3]
[368486975,1751190698428,-2111.85,0.00028767,3]
[368486976,1751190698438,-2504.77,0.00028767,3]
[368486977,1751190698447,-670.5,0.00028767,3]
[368486978,1751190698456,-1466.04,0.00028767,3]
[368486979,1751190698465,-9168.68,0.00028767,3]
[368486980,1751190698474,-995.99,0.00028767,3]
[368486981,1751190698483,-148479.19,0.00028767,3]
[368486982,1751190698493,-1110.23,0.00028767,3]
[368486983,1751190698502,-884.61,0.00028767,3]
[368486984,1751190698511,-490.0,0.00028767,3]
[368486985,1751190698520,-3927.92,0.00028767,3]
[368486986,1751190698530,-1262.58,0.00028767,3]
[368486987,1751190698539,-490.0,0.00028767,3]
[368486988,1751190698548,-625.329846,0.00028767,3]
[368486989,1751190698558,-490.0,0.00028767,3]
[368486990,1751190698567,-1550.57,0.00028767,3]
[368486991,1751190698576,-490.0,0.00028767,3]
[368486992,1751190698586,-4423.72,0.00028767,3]
[368486993,1751190698595,-151.0,0.00028767,7]
[368486994,1751190698604,-151.0,0.00028767,7]
[368486995,1751190698614,-799.02,0.00028767,3]
[368486996,1751190698623,-490.0,0.00028767,3]
[368486997,1751190698632,-2359.81,0.00028767,3]
[368486998,1751190698642,-1420.75,0.00028767,3]
[368486999,1751190698651,-490.0,0.00028767,3]
[368487000,1751190698661,-612.29,0.00028767,3]
[368487001,1751190698671,-490.0,0.00028767,3]
[368487002,1751190698680,-2220.09,0.00028767,3]
[368487003,1751190698689,-490.0,0.00028767,3]
[368487004,1751190698698,-490.0,0.00028767,3]
[368487005,1751190698708,-1116.8,0.00028767,3]
[368487006,1751190698717,-490.0,0.00028767,3]
[368487007,1751190698726,-850.38,0.00028767,3]
[368487008,1751190698735,-495.37,0.00028767,3]
[368487009,1751190698744,-1635.41,0.00028767,3]
[368487010,1751190698753,-1906.36,0.00028767,3]
[368487011,1751190698763,-2198.76,0.00028767,3]
[368487012,1751190698772,-1730.15,0.00028767,3]
[368487013,1751190698781,-490.0,0.00028767,3]
[368487014,1751190698790,-490.0,0.00028767,3]
[368487015,1751190698799,-1477.82,0.00028767,3]
[368487016,1751190698809,-590.95,0.00028767,3]
[368487017,1751190698818,-3000.74,0.00028767,3]
[368487018,1751190698827,-924.29,0.00028767,3]
[368487019,1751190698837,-818.08,0.00028767,3]
[368487020,1751190698845,-1537.71,0.00028767,3]
[368487021,1751190698855,-1894.35,0.00028767,3]
[368487022,1751190698864,-344.45584883,0.00028767,3]
[368487023,1751190698873,-1565.54,0.00028767,3]
[368487024,1751190698883,-490.0,0.00028767,3]
[368487025,1751190698892,-707.33,0.00028767,3]
[368487026,1751190698902,-854.62,0.00028767,3]
[368487027,1751190698911,-490.0,0.00028767,3]
[368487028,1751190698921,-2120.63,0.00028767,3]
[368487029,1751190698931,-1990.15,0.00028767,3]
[368487030,1751190698940,-490.0,0.00028767,3]
[368487031,1751190698949,-490.0,0.00028767,3]
[368487032,1751190698958,-490.0,0.00028767,3]
[368487033,1751190698969,-501.24,0.00028767,3]
[368487034,1751190698978,-1303.39,0.00028767,3]
[368487035,1751190698987,-490.0,0.00028767,3]
[368487036,1751190698997,-490.0,0.00028767,3]
[368487037,1751190699007,-412.5416444,0.00028767,3]
[368487038,1751190699017,-490.0,0.00028767,3]
[368487039,1751190699027,-490.0,0.00028767,3]
[368487040,1751190699039,-2057.83,0.00028767,3]
[368487041,1751190699049,-1078.53,0.00028767,3]
[368487042,1751190699059,-1066.81,0.00028767,3]
[368487043,1751190699069,-829.05,0.00028767,3]
[368487044,1751190699079,-2549.31,0.00028767,3]
[368487045,1751190699089,-1514.01,0.00028767,3]
[368487046,1751190699098,-490.0,0.00028767,3]
[368487047,1751190699108,-709.69,0.00028767,3]
[368487048,1751190699118,-490.0,0.00028767,3]
[368487049,1751190699128,-490.0,0.00028767,3]
[368487050,1751190699138,-1413.24,0.00028767,3]
[368487051,1751190699148,-1126.76,0.00028767,3]
[368487052,1751190699158,-499.7,0.00028767,3]
[368487053,1751190699169,-7138.85,0.00028767,3]
[368487054,1751190699179,-490.0,0.00028767,3]
[368487055,1751190699189,-490.0,0.00028767,3]
[368487056,1751190699198,-1903.95,0.00028767,3]
[368487057,1751190699208,-1687.9,0.00028767,3]
[368487058,1751190699217,-1199.32,0.00028767,3]
[368487059,1751190699226,-605.34,0.00028767,3]
[368487060,1751190699235,-490.0,0.00028767,3]
[368487061,1751190699244,-624.57,0.00028767,3]
[368487062,1751190699253,-1080.18,0.00028767,3]
[368487063,1751190699262,-490.0,0.00028767,3]
[368487064,1751190699272,-1902.03,0.00028767,3]
[368487065,1751190699282,-685.5,0.00028767,3]
[368487066,1751190699291,-490.0,0.00028767,3]
[368487067,1751190699300,-985.04,0.00028767,3]
[368487068,1751190699309,-809.87,0.00028767,3]
[368487069,1751190699319,-2277.33,0.00028767,3]
[368487070,1751190699328,-3579.22,0.00028767,3]
[368487071,1751190699338,-1369.16,0.00028767,3]
[368487072,1751190699349,-490.0,0.00028767,3]
[368487073,1751190699358,-1202.94,0.00028767,3]
[368487074,1751190699368,-490.0,0.00028767,3]
[368487075,1751190699377,-1406.03,0.00028767,3]
[368487076,1751190699386,-490.0,0.00028767,3]
[368487077,1751190699396,-7389.77,0.00028767,3]
[368487078,1751190699406,-2322.41,0.00028767,3]
[368487079,1751190699415,-892.36,0.00028767,3]
[368487080,1751190699425,-554.42626085,0.00028767,3]
[368487081,1751190699434,-936.2,0.00028767,3]
[368487082,1751190699444,-11425.24,0.00028767,3]
[368487083,1751190699454,-490.0,0.00028767,3]
[368487084,1751190699463,-2363.6,0.00028767,3]
[368487085,1751190699474,-1344.12,0.00028767,3]
[368487086,1751190699484,-490.0,0.00028767,3]
[368487087,1751190699493,-490.0,0.00028767,3]
[368487088,1751190699502,-490.0,0.00028767,3]
[368487089,1751190699511,-490.0,0.00028767,3]
[368487090,1751190699521,-1010.37,0.00028767,3]
[368487091,1751190699530,-3943.02,0.00028767,3]
[368487092,1751190699539,-719.55,0.00028767,3]
[368487093,1751190699548,-2127.37,0.00028767,3]
[368487094,1751190699557,-962.36,0.00028767,3]
[368487095,1751190699567,-490.0,0.00028767,3]
[368487096,1751190699577,-3378.38,0.00028767,3]
[368487097,1751190699586,-1167.04,0.00028767,3]
[368487098,1751190699595,-2325.84,0.00028767,3]
[368487099,1751190699605,-1319.73,0.00028767,3]
[368487100,1751190699614,-2715.66,0.00028767,3]
[368487101,1751190699624,-490.0,0.00028767,3]
[368487102,1751190699632,-509.95,0.00028767,3]
[368487103,1751190699641,-613.68,0.00028767,3]
[368487104,1751190699650,-490.0,0.00028767,3]
[368487105,1751190699660,-490.0,0.00028767,3]
[368487106,1751190699669,-1294.86,0.00028767,3]
[368487107,1751190699678,-490.0,0.00028767,3]
[368487108,1751190699688,-1043.95,0.00028767,3]
[368487109,1751190699697,-1355.41,0.00028767,3]
[368487110,1751190699707,-2207.5,0.00028767,3]
[368487111,1751190699716,-4741.41,0.00028767,3]
[368487112,1751190699725,-545.36,0.00028767,3]
[368487113,1751190699735,-490.0,0.00028767,3]
[368487114,1751190699744,-1588.45,0.00028767,3]
[368487115,1751190699753,-490.0,0.00028767,3]
[368487116,1751190699762,-826.61,0.00028767,3]
[368487117,1751190699772,-490.0,0.00028767,3]
[368487118,1751190699781,-3228.0,0.00028767,3]
[368487119,1751190699790,-490.0,0.00028767,3]
[368487120,1751190699800,-886.06,0.00028767,3]
[368487121,1751190699809,-9205.97,0.00028767,3]
[368487122,1751190699818,-1424.96,0.00028767,3]
[368487123,1751190699828,-1170.72,0.00028767,3]
[368487124,1751190699837,-490.0,0.00028767,3]
[368487125,1751190699846,-2306.21,0.00028767,3]
[368487126,1751190699855,-3412.3,0.00028767,3]
[368487127,1751190699865,-728.26,0.00028767,3]
[368487128,1751190699874,-1625.19,0.00028767,3]
[368487129,1751190699883,-490.0,0.00028767,3]
[368487130,1751190699893,-1125.2,0.00028767,3]
[368487131,1751190699902,-1386.0,0.00028767,3]
[368487132,1751190699911,-736.63,0.00028767,3]
[368487133,1751190699920,-268.59462041,0.00028767,3]
[368487134,1751190699929,-1000.0,0.00028767,3]
[368487135,1751190699939,-490.0,0.00028767,3]
[368487136,1751190699949,-1530.28,0.00028767,3]
[368487137,1751190699959,-1073.8,0.00028767,3]
[368487138,1751190699968,-2006.57,0.00028767,3]
[368487139,1751190699978,-490.0,0.00028767,3]
[368487140,1751190699987,-2126.77,0.00028767,3]
[368487141,1751190699997,-2091.51,0.00028767,3]
[368487142,1751190700007,-339.75527126,0.00028767,3]
[368487143,1751190700016,-1779.52,0.00028767,3]
[368487144,1751190700026,-490.0,0.00028767,3]
[368487145,1751190700035,-490.0,0.00028767,3]
[368487146,1751190700044,-490.0,0.00028767,3]
[368487147,1751190700054,-497.53458279,0.00028767,3]
[368487148,1751190700063,-490.0,0.00028767,3]
[368487149,1751190700073,-1303.39,0.00028767,3]
[368487150,1751190700083,-490.0,0.00028767,3]
[368487151,1751190700092,-1673.45,0.00028767,3]
[368487152,1751190700101,-268.61950068,0.00028767,3]
[368487153,1751190700111,-776.8,0.00028767,3]
[368487154,1751190700120,-4507.51,0.00028767,3]
[368487155,1751190700129,-2452.49,0.00028767,3]
[368487156,1751190700138,-2000.1,0.00028767,3]
[368487157,1751190700147,-3480.9,0.00028767,3]
[368487158,1751190700155,-490.0,0.00028767,3]
[368487159,1751190700165,-1935.08,0.00028767,3]
[368487160,1751190700174,-490.0,0.00028767,3]
[368487161,1751190700184,-1632.66,0.00028767,3]
[368487162,1751190700193,-359.71167763,0.00028767,3]
[368487163,1751190700202,-1569.37,0.00028767,3]
[368487164,1751190700212,-2530.56,0.00028767,3]
[368487165,1751190700221,-490.0,0.00028767,3]
[368487166,1751190700231,-490.0,0.00028767,3]
[368487167,1751190700240,-1489.85,0.00028767,3]
[368487168,1751190700250,-490.0,0.00028767,3]
[368487169,1751190700259,-490.0,0.00028767,3]
[368487170,1751190700268,-1193.32,0.00028767,3]
[368487171,1751190700278,-490.0,0.00028767,3]
[368487172,1751190700288,-2419.87,0.00028767,3]
[368487173,1751190700297,-588.25,0.00028767,3]
[368487174,1751190700307,-1993.35,0.00028767,3]
[368487175,1751190700316,-2069.08,0.00028767,3]
[368487176,1751190700325,-3522.67,0.00028767,3]
[368487177,1751190700334,-1690.76,0.00028767,3]
[368487178,1751190700346,-2018.73,0.00028767,3]
[368487179,1751190700357,-2243.02,0.00028767,3]
[368487180,1751190700366,-490.0,0.00028767,3]
[368487181,1751190700376,-556.19765921,0.00028767,3]
[368487182,1751190700385,-520.82622191,0.00028767,3]
[368487183,1751190700395,-490.0,0.00028767,3]
[368487184,1751190700404,-1621.16,0.00028767,3]
[368487185,1751190700413,-490.0,0.00028767,3]
[368487186,1751190700424,-2803.72,0.00028767,3]
[368487187,1751190700434,-544.62035192,0.00028767,3]
[368487188,1751190700444,-591.60574517,0.00028767,3]
[368487189,1751190700453,-490.0,0.00028767,3]
[368487190,1751190700462,-490.0,0.00028767,3]
[368487191,1751190700472,-490.0,0.00028767,3]
[368487192,1751190700481,-490.0,0.00028767,3]
[368487193,1751190700490,-490.0,0.00028767,3]
[368487194,1751190700500,-1156.58,0.00028767,3]
[368487195,1751190700509,-697.23,0.00028767,3]
[368487196,1751190700519,-490.0,0.00028767,3]
[368487197,1751190700528,-2344.83,0.00028767,3]
[368487198,1751190700537,-490.0,0.00028767,3]
[368487199,1751190700547,-896.46,0.00028767,3]
[368487200,1751190700556,-1455.99,0.00028767,3]
[368487201,1751190700566,-2317.49,0.00028767,3]
[368487202,1751190700575,-1697.89,0.00028767,3]
[368487203,1751190700584,-490.0,0.00028767,3]
[368487204,1751190700594,-490.0,0.00028767,3]
[368487205,1751190700603,-490.0,0.00028767,3]
[368487206,1751190700613,-2847.6,0.00028767,3]
[368487207,1751190700622,-490.0,0.00028767,3]
[368487208,1751190700632,-1196.0,0.00028767,3]
[368487209,1751190700641,-490.0,0.00028767,3]
[368487210,1751190700650,-4069.2,0.00028767,3]
[368487211,1751190700660,-499.82,0.00028767,3]
[368487212,1751190700669,-1620.63,0.00028767,3]
[368487213,1751190700678,-24643.72,0.00028767,3]
[368487214,1751190700688,-498.07,0.00028767,3]
[368487215,1751190700698,-3762.98,0.00028767,3]
[368487216,1751190700707,-490.0,0.00028767,3]
[368487217,1751190700717,-1069.72,0.00028767,3]
[368487218,1751190700726,-725.1,0.00028767,3]
[368487219,1751190700735,-4782.64,0.00028767,3]
[368487220,1751190700744,-490.0,0.00028767,3]
[368487221,1751190700753,-1100.83,0.00028767,3]
[368487222,1751190700762,-1824.13,0.00028767,3]
[368487223,1751190700771,-2504.1,0.00028767,3]
[368487224,1751190700781,-1607.63,0.00028767,3]
[368487225,1751190700790,-490.0,0.00028767,3]
[368487226,1751190700799,-1132.25,0.00028767,3]
[368487227,1751190700809,-11678.75,0.00028767,3]
[368487228,1751190700818,-3607.16,0.00028767,3]
[368487229,1751190700827,-490.0,0.00028767,3]
[368487230,1751190700837,-674.39,0.00028767,3]
[368487231,1751190700846,-2388.21,0.00028767,3]
[368487232,1751190700855,-490.0,0.00028767,3]
[368487233,1751190700865,-632.01,0.00028767,3]
[368487234,1751190700874,-490.0,0.00028767,3]
[368487235,1751190700883,-551.65651149,0.00028767,3]
[368487236,1751190700893,-3749.55,0.00028767,3]
[368487237,1751190700902,-2478.96,0.00028767,3]
[368487238,1751190700911,-490.0,0.00028767,3]
[368487239,1751190700921,-1798.53,0.00028767,3]
[368487240,1751190700930,-536.71,0.00028767,3]
[368487241,1751190700939,-1629.68,0.00028767,3]
[368487242,1751190700949,-3221.5,0.00028767,3]
[368487243,1751190700959,-490.0,0.00028767,3]
[368487244,1751190700968,-490.0,0.00028767,3]
[368487245,1751190700978,-1535.71,0.00028767,3]
[368487246,1751190700988,-548.24,0.00028767,3]
[368487247,1751190700998,-2263.99,0.00028767,3]
[368487248,1751190701008,-1677.32,0.00028767,3]
[368487249,1751190701017,-6718.76,0.00028767,3]
[368487250,1751190701027,-1322.58,0.00028767,3]
[368487251,1751190701037,-490.0,0.00028767,3]
[368487252,1751190701047,-553.18,0.00028767,3]
[368487253,1751190701057,-18559.3,0.00028767,3]
[368487254,1751190701066,-857.93,0.00028767,3]
[368487255,1751190701076,-490.0,0.00028767,3]
[368487256,1751190701086,-987.81,0.00028767,3]
[368487257,1751190701097,-490.0,0.00028767,3]
[368487258,1751190701107,-2586.37,0.00028767,3]
[368487259,1751190701118,-1263.2,0.00028767,3]
[368487260,1751190701131,-3862.63,0.00028767,3]
[368487261,1751190701142,-1943.16,0.00028767,3]
[368487262,1751190701153,-490.0,0.00028767,3]
[368487263,1751190701164,-698.11,0.00028767,3]
[368487264,1751190701175,-826.74,0.00028767,3]
[368487265,1751190701185,-490.0,0.00028767,3]
[368487266,1751190701196,-490.0,0.00028767,3]
[368487267,1751190701206,-490.0,0.00028767,3]
[368487268,1751190701216,-4122.27,0.00028767,3]
[368487269,1751190701226,-490.0,0.00028767,3]
[368487270,1751190701237,-490.0,0.00028767,3]
[368487271,1751190701246,-490.0,0.00028767,3]
[368487272,1751190701256,-4529.09,0.00028767,3]
[368487273,1751190701266,-1385.92,0.00028767,3]
[368487274,1751190701276,-490.0,0.00028767,3]
[368487275,1751190701286,-490.0,0.00028767,3]
[368487276,1751190701296,-490.0,0.00028767,3]
[368487277,1751190701306,-1552.69,0.00028767,3]
[368487278,1751190701317,-2723.89,0.00028767,3]
[368487279,1751190701327,-5320.1,0.00028767,3]
[368487280,1751190701337,-490.0,0.00028767,3]
[368487281,1751190701350,-620.43,0.00028767,3]
[368487282,1751190701361,-1307.14,0.00028767,3]
[368487283,1751190701371,-2896.25,0.00028767,3]
[368487284,1751190701380,-919.31,0.00028767,3]
[368487285,1751190701391,-2347.57,0.00028767,3]
[368487286,1751190701401,-1874.39,0.00028767,3]
[368487287,1751190701410,-2024.74,0.00028767,3]
[368487288,1751190701421,-490.0,0.00028767,3]
[368487289,1751190701431,-5682.59,0.00028767,3]
[368487290,1751190701442,-490.0,0.00028767,3]
[368487291,1751190701453,-490.0,0.00028767,3]
[368487292,1751190701463,-490.0,0.00028767,3]
[368487293,1751190701473,-490.0,0.00028767,3]
[368487294,1751190701482,-2104.31,0.00028767,3]
[368487295,1751190701492,-626.13,0.00028767,3]
[368487296,1751190701502,-1968.64,0.00028767,3]
[368487297,1751190701512,-2133.2,0.00028767,3]
[368487298,1751190701522,-490.0,0.00028767,3]
[368487299,1751190701531,-490.0,0.00028767,3]
[368487300,1751190701541,-1770.11,0.00028767,3]
[368487301,1751190701550,-1764.06,0.00028767,3]
[368487302,1751190701560,-490.0,0.00028767,3]
[368487303,1751190701570,-700.52,0.00028767,3]
[368487304,1751190701580,-490.0,0.00028767,3]
[368487305,1751190701590,-1730.13,0.00028767,3]
[368487306,1751190701599,-2165.68,0.00028767,3]
[368487307,1751190701609,-513.72,0.00028767,3]
[368487308,1751190701618,-883.4,0.00028767,3]
[368487309,1751190701628,-1926.75,0.00028767,3]
[368487310,1751190701638,-5921.12,0.00028767,3]
[368487311,1751190701649,-490.0,0.00028767,3]
[368487312,1751190701659,-2043.04,0.00028767,3]
[368487313,1751190701669,-490.0,0.00028767,3]
[368487314,1751190701678,-2141.99,0.00028767,3]
[368487315,1751190701688,-490.0,0.00028767,3]
[368487316,1751190701699,-855.58,0.00028767,3]
[368487317,1751190701709,-631.01,0.00028767,3]
[368487318,1751190701719,-696.89,0.00028767,3]
[368487319,1751190701729,-1625.9,0.00028767,3]
[368487320,1751190701740,-490.0,0.00028767,3]
[368487321,1751190701750,-3241.41,0.00028767,3]
[368487322,1751190701760,-3866.16,0.00028767,3]
[368487323,1751190701769,-4543.11,0.00028767,3]
[368487324,1751190701779,-2087.25,0.00028767,3]
[368487325,1751190701788,-569.82,0.00028767,3]
[368487326,1751190701797,-1891.34,0.00028767,3]
[368487327,1751190701807,-460.20410195,0.00028767,3]
[368487328,1751190701817,-490.0,0.00028767,3]
[368487329,1751190701827,-1931.12,0.00028767,3]
[368487330,1751190701838,-490.0,0.00028767,3]
[368487331,1751190701848,-490.0,0.00028767,3]
[368487332,1751190701859,-484.41321971,0.00028767,3]
[368487333,1751190701868,-490.0,0.00028767,2]
[368487334,1751190701878,-184.4429572,0.00028767,3]
[368487335,1751190701888,-1948.57,0.00028767,3]
[368487336,1751190701897,-1323.16,0.00028767,3]
[368487337,1751190701907,-971.22,0.00028767,3]
[368487338,1751190701917,-6890.33,0.00028767,3]
[368487339,1751190701927,-1740.09,0.00028767,3]
[368487340,1751190701937,-961.28,0.00028767,3]
[368487341,1751190701947,-490.0,0.00028767,3]
[368487342,1751190701958,-1509.17,0.00028767,3]
[368487343,1751190701968,-2526.68,0.00028767,3]
[368487344,1751190701978,-490.0,0.00028767,3]
[368487345,1751190701988,-1923.32,0.00028767,3]
[368487346,1751190701998,-490.0,0.00028767,3]
[368487347,1751190702010,-1194.57,0.00028767,3]
[368487348,1751190702020,-2090.18,0.00028767,3]
[368487349,1751190702030,-830.46,0.00028767,3]
[368487350,1751190702040,-2136.05,0.00028767,2]
[368487351,1751190702050,-462.48,0.00028767,2]
[368487352,1751190702060,-799.39,0.00028767,2]
[368487353,1751190702070,-1500.0,0.00028768,5]
[368487354,1751190702080,-1500.0,0.00028768,5]
[368487355,1751190702090,-1511.0556871,0.00028768,5]
[368487356,1751190702100,-1509.25499804,0.00028768,5]
[368487357,1751190702110,-527.83560482,0.00028768,5]
[368487358,1751190702121,-1500.0,0.00028768,5]
[368487359,1751190702131,-1506.4539473,0.00028768,5]
[368487360,1751190702141,-505.96458395,0.00028768,5]
[368487361,1751190702151,-1649.40473451,0.00028768,5]
[368487362,1751190702161,-1500.0,0.00028768,5]
[368487363,1751190702171,-1500.0,0.00028768,5]
[368487364,1751190702181,-1503.98670104,0.00028768,5]
[368487365,1751190702191,-1008.61718543,0.00028768,5]
[368487366,1751190702201,-1503.190037,0.00028768,5]
[368487367,1751190702211,-461.78,0.00028795,2]
[368487368,1751190702221,-942.0,0.000288,7]
[368487369,1751190702231,-303.98420713,0.00028804,2]
[368487370,1751190702241,-168.0,0.00028851,2]
[368487371,1751190702251,-168.0,0.00028854,2]
[368487372,1751190702261,-1680.0,0.00028869,2]
[368487373,1751190702271,-2110.0,0.00028881,2]
[368487374,1751190702282,-2500.0,0.000289,10]
[368487375,1751190702292,-1000.0,0.00028925,120]
[368487376,1751190702301,-202.95260643,0.00028941,2]
[368487377,1751190702312,-479.52259878,0.00028941,2]
[368487378,1751190702322,-253.21,0.00028961,2]
[368487379,1751190702332,-2043.46130184,0.00028969,20]
[368487380,1751190702342,-274.6394248,0.0002898,2]
[368487381,1751190702356,-9023.0795948,0.0002898,2]
[368487382,1751190702366,-57247.3036702,0.0002898,2]
[368487383,1751190702376,-1727.06481,0.0002898,2]
[368487384,1751190702387,-3224.9039981,0.00028987,2]
[368487385,1751190702397,-6783.4781891,0.00028997,2]
[368487386,1751190702407,-1000.0,0.00028999,2]
[368487387,1751190702417,-1000.0,0.00028999,2]
[368487388,1751190702427,-1000.0,0.00028999,2]
[368487389,1751190702437,-1000.0,0.00028999,2]
[368487390,1751190702447,-1000.0,0.00028999,2]
[368487391,1751190702457,-1000.0,0.00028999,2]
[368487392,1751190702466,-172.0,0.00029,120]
[368487393,1751190702476,-1154.05,0.00029,2]
[368487394,1751190702486,-1154.05,0.00029,2]
[368487395,1751190702496,-405.29127779,0.00029,7]
[368487396,1751190702506,-5640.55,0.00029,2]
[368487397,1751190702516,-5640.55,0.00029,2]
[368487398,1751190702525,-3683.01,0.00029,2]
[368487399,1751190702535,-3683.01,0.00029,2]
[368487400,1751190702545,-7366.01,0.00029,2]
[368487401,1751190702555,-7366.01,0.00029,2]
[368487402,1751190702565,-70517.25783404,0.00029,2]
[368487403,1751190702575,-42075.71063637,0.00029,2]
[368487404,1751190702585,-2000.0,0.00029,2]
[368487405,1751190702594,-7372.47,0.00029,2]
[368487406,1751190702605,-7372.47,0.00029,2]
[368487407,1751190702615,-291.530198,0.00029,7]
[368487408,1751190702625,-200.3881,0.00029,2]
[368487409,1751190702635,-371.85557959,0.00029002,15]
[368487410,1751190702645,-18462.33494605,0.00029007,2]
[368487411,1751190702655,-1197.46642278,0.00029016,2]
[368487412,1751190702665,-2000.0,0.00029016,5]
[368487413,1751190702676,-2000.0,0.00029016,5]
[368487414,1751190702685,-12779.8191018,0.00029021,2]
[368487415,1751190702695,-208.0,0.0002904,30]
[368487416,1751190702706,-600.0,0.0002904,7]
[368487417,1751190702715,-490.0,0.0002904,3]
[368487418,1751190702725,-590.68,0.0002904,3]
[368487419,1751190702735,-802.0,0.00029041,3]
[368487420,1751190702745,-500.0,0.00029041,3]
[368487421,1751190702755,-500.0,0.00029041,3]